fUST/lending_fUST_20250630
["ID","MTS","AMOUNT","RATE_DAILY","PERIOD"]
[368632643,1751253052354,-467.72,0.0001961,2]
[368632644,1751253052364,-460.0,0.0001961,2]
[368632645,1751253052372,-460.0,0.0001961,2]
[368632646,1751253052381,-4152.47,0.0001961,2]
[368632647,1751253052391,-1076.4,0.0001961,2]
[368632648,1751253052400,-616.92,0.0001961,2]
[368632649,1751253052410,-460.0,0.0001961,2]
[368632650,1751253052419,-668.05,0.0001961,2]
[368632651,1751253052428,-1701.05,0.0001961,2]
[368632652,1751253052437,-719.919405,0.00019611,2]
[368632653,1751253052446,-182.351367,0.00019611,2]
[368632654,1751253052455,-719.919405,0.00019611,2]
[368632655,1751253052464,-151.0,0.00019611,2]
[368632656,1751253052474,-839.346972,0.00019611,2]
[368632657,1751253052483,-839.346972,0.00019611,2]
[368632658,1751253052493,-460.0,0.00019611,2]
[368632659,1751253052502,-460.0,0.00019611,2]
[368632660,1751253052511,-460.0,0.00019611,2]
[368632661,1751253052520,-460.0,0.00019611,2]
[368632662,1751253052529,-637.03,0.00019611,2]
[368632663,1751253052538,-607.46,0.00019611,2]
[368632664,1751253052547,-460.0,0.00019611,2]
[368632665,1751253052556,-460.0,0.00019611,2]
[368632666,1751253052567,-1031.72,0.00019611,2]
[368632667,1751253052576,-460.0,0.00019611,2]
[368632668,1751253052586,-475.64000837,0.00019611,2]
[368632669,1751253052595,-747.14,0.00019611,2]
[368632670,1751253052604,-1251.82,0.00019611,2]
[368632671,1751253052613,-460.0,0.00019611,2]
[368632672,1751253052622,-1642.67,0.00019611,2]
[368632673,1751253052631,-525.79,0.00019611,2]
[368632674,1751253052641,-460.0,0.00019611,2]
[368632675,1751253052650,-934.86,0.00019611,2]
[368632676,1751253052659,-1645.98,0.00019611,2]
[368632677,1751253052669,-460.0,0.00019611,2]
[368632678,1751253052678,-826.26,0.00019612,3]
[368632679,1751253052687,-413.12,0.00019612,3]
[368632680,1751253052696,-5033.76,0.00019612,2]
[368632681,1751253052705,-1330.15,0.00019612,2]
[368632682,1751253052714,-1652.5,0.00019613,3]
[368632683,1751253052725,-968.336,0.00019616,2]
[368632684,1751253052734,-646.0,0.00019616,2]
[368632685,1751253052743,-2151.0,0.00019616,2]
[368632686,1751253052752,-406.0,0.00019616,2]
[368632687,1751253052761,-423.35,0.00019616,2]
[368632688,1751253052771,-460.0,0.00019622,2]
[368632689,1751253052780,-683.44,0.00019623,2]
[368632690,1751253052789,-473.73208613,0.00019623,2]
[368632691,1751253052903,-719.919405,0.00019624,2]
[368632692,1751253052912,-719.919405,0.00019624,2]
[368632693,1751253052923,-839.346972,0.00019624,2]
[368632694,1751253052933,-839.346972,0.00019624,2]
[368632695,1751253052942,-515.05649571,0.00019624,2]
[368632696,1751253052952,-460.0,0.00019624,2]
[368632697,1751253052961,-1000.0,0.00019625,2]
[368632698,1751253052971,-502.13483956,0.0001963,2]
[368632699,1751253052981,-195.2934884,0.0001963,2]
[368632700,1751253052990,-236.0,0.0001966,2]
[368632701,1751253052999,-1500.0,0.00019668,2]
[368632702,1751253053009,-1500.0,0.00019668,2]
[368632703,1751253053018,-1038.39960173,0.00019668,2]
[368632704,1751253053028,-1500.0,0.00019668,2]
[368632705,1751253053037,-151.0,0.000197,2]
[368632706,1751253053047,-151.0,0.000197,2]
[368632707,1751253053057,-151.0,0.000197,2]
[368632708,1751253053067,-151.0,0.000197,2]
[368632709,1751253053076,-1855.3665448,0.000197,2]
[368632710,1751253053085,-236.0,0.00019723,2]
[368632711,1751253053095,-4942.01093482,0.00019762,2]
[368632712,1751253053105,-176.70092935,0.00019786,10]
[368632713,1751253053116,-355.52413208,0.000198,5]
[368632714,1751253053126,-163.0,0.000198,3]
[368632715,1751253053135,-163.0,0.000198,4]
[368632716,1751253053145,-177.50110013,0.000198,4]
[368632717,1751253053155,-151.0,0.000198,2]
[368632718,1751253053164,-49533.47959059,0.000198,2]
[368632719,1751253053173,-3006.35663089,0.000198,2]
[368632720,1751253053183,-151.0,0.000198,2]
[368632721,1751253053192,-719.919405,0.000198,2]
[368632722,1751253053202,-719.919402,0.000198,2]
[368632723,1751253053211,-151.0,0.000198,2]
[368632724,1751253053221,-839.346972,0.000198,2]
[368632725,1751253053230,-839.346976,0.000198,2]
[368632726,1751253053239,-460.0,0.00019881,2]
[368632727,1751253053248,-1317.79,0.00019881,2]
[368632728,1751253053258,-908.59,0.00019882,2]
[368632729,1751253053267,-1897.47,0.00019882,2]
[368632730,1751253053277,-2100.5,0.00019882,2]
[368632731,1751253053287,-460.0,0.00019882,2]
[368632732,1751253053295,-460.0,0.00019882,2]
[368632733,1751253053306,-460.0,0.00019882,2]
[368632734,1751253053315,-460.0,0.00019882,2]
[368632735,1751253053325,-1992.91,0.00019882,2]
[368632736,1751253053336,-1855.7,0.00019882,2]
[368632737,1751253053346,-2731.33,0.00019882,2]
[368632738,1751253053356,-460.0,0.00019882,2]
[368632739,1751253053365,-1236.31,0.00019882,2]
[368632740,1751253053375,-680.87,0.00019882,2]
[368632741,1751253053384,-530.93,0.00019882,2]
[368632742,1751253053393,-460.0,0.00019882,2]
[368632743,1751253053402,-1348.32,0.00019883,2]
[368632744,1751253053411,-478.15591882,0.00019883,2]
[368632745,1751253053420,-460.0,0.00019883,2]
[368632746,1751253053430,-460.0,0.00019883,2]
[368632747,1751253053439,-677.1,0.00019883,2]
[368632748,1751253053448,-460.0,0.00019883,2]
[368632749,1751253053457,-562.76,0.00019883,2]
[368632750,1751253053467,-460.0,0.00019883,2]
[368632751,1751253053477,-730.03,0.00019883,2]
[368632752,1751253053486,-460.0,0.00019883,2]
[368632753,1751253053495,-460.0,0.00019883,2]
[368632754,1751253053503,-617.08,0.00019883,2]
[368632755,1751253053513,-460.0,0.00019883,2]
[368632756,1751253053522,-460.0,0.00019883,2]
[368632757,1751253053531,-168.9294669,0.00019883,2]
[368632758,1751253053540,-460.0,0.00019884,2]
[368632759,1751253053550,-517.79702891,0.00019884,2]
[368632760,1751253053559,-460.0,0.00019884,2]
[368632761,1751253053568,-467.72,0.00019884,2]
[368632762,1751253053577,-460.0,0.00019884,2]
[368632763,1751253053586,-460.0,0.00019884,2]
[368632764,1751253053596,-4152.47,0.00019884,2]
[368632765,1751253053605,-1076.4,0.00019884,2]
[368632766,1751253053614,-616.92,0.00019884,2]
[368632767,1751253053623,-493.64409279,0.00019884,2]
[368632768,1751253053633,-668.05,0.00019884,2]
[368632769,1751253053642,-1701.05,0.00019884,2]
[368632770,1751253053651,-262.37817723,0.00019885,2]
[368632771,1751253053662,-460.0,0.00019885,2]
[368632772,1751253053671,-460.0,0.00019885,2]
[368632773,1751253053681,-460.0,0.00019885,2]
[368632774,1751253053690,-637.03,0.00019885,2]
[368632775,1751253053699,-607.46,0.00019885,2]
[368632776,1751253053709,-165.58330976,0.00019885,2]
[368632777,1751253053719,-460.0,0.00019885,2]
[368632778,1751253053729,-1031.72,0.00019885,2]
[368632779,1751253053739,-460.0,0.00019885,2]
[368632780,1751253053748,-747.14,0.00019885,2]
[368632781,1751253053758,-1251.82,0.00019885,2]
[368632782,1751253053768,-460.0,0.00019885,2]
[368632783,1751253053777,-1642.67,0.00019885,2]
[368632784,1751253053787,-525.79,0.00019885,2]
[368632785,1751253053796,-460.0,0.00019885,2]
[368632786,1751253053807,-934.86,0.00019885,2]
[368632787,1751253053816,-1645.98,0.00019885,2]
[368632788,1751253053826,-460.0,0.00019885,2]
[368632789,1751253053836,-5033.76,0.00019886,2]
[368632790,1751253053846,-1330.15,0.00019886,2]
[368632791,1751253053856,-153.0,0.0001989,2]
[368632792,1751253053865,-153.0,0.0001989,2]
[368632793,1751253053874,-153.0,0.0001989,2]
[368632794,1751253053885,-153.0,0.0001989,2]
[368632795,1751253053895,-153.0,0.0001989,2]
[368632796,1751253053904,-153.0,0.0001989,2]
[368632797,1751253053913,-153.0,0.0001989,2]
[368632798,1751253053924,-420.0,0.00019893,2]
[368632799,1751253053935,-460.0,0.00019896,2]
[368632800,1751253053944,-683.44,0.00019897,2]
[368632801,1751253053955,-460.0,0.00019898,2]
[368632802,1751253053964,-30000.0,0.000199,2]
[368632803,1751253053975,-151.0,0.000199,2]
[368632804,1751253053984,-236.0,0.00019909,2]
[368632805,1751253053993,-4942.01093482,0.00019934,2]
[368632806,1751253054002,-247.364,0.00019941,2]
[368632807,1751253054012,-177.4788171,0.00019945,2]
[368632808,1751253054021,-575.118961,0.00019945,2]
[368632809,1751253054030,-250.0,0.00019968,2]
[368632810,1751253054040,-150.0,0.00019968,2]
[368632811,1751253054051,-1680.0,0.00019983,2]
[368632812,1751253054060,-37525.93562247,0.0002,5]
[368632813,1751253054185,-70221.67681604,0.0002,5]
[368632814,1751253054197,-5136.2188089,0.0002,5]
[368632815,1751253054208,-500.0,0.0002,5]
[368632816,1751253054219,-1336.30043752,0.0002,5]
[368632817,1751253054231,-358.26354368,0.0002,5]
[368632818,1751253054242,-373.56567764,0.0002,5]
[368632819,1751253054255,-3647.92052878,0.0002,5]
[368632820,1751253054266,-6174.50898678,0.0002,5]
[368632821,1751253054278,-71818.00095493,0.0002,5]
[368632822,1751253054287,-159.319357,0.0002,2]
[368632823,1751253054296,-153.0,0.0002,2]
[368632824,1751253054306,-575.4102369,0.0002,2]
[368632825,1751253054315,-177.5677436,0.0002,2]
[368632826,1751253054324,-159.319357,0.0002,2]
[368632827,1751253054334,-575.4102369,0.0002,2]
[368632828,1751253054343,-153.0,0.0002,2]
[368632829,1751253054352,-177.5677436,0.0002,2]
[368632830,1751253054362,-159.319357,0.0002,2]
[368632831,1751253054372,-153.0,0.0002,2]
[368632832,1751253054381,-575.4102369,0.0002,2]
[368632833,1751253054390,-177.5677436,0.0002,2]
[368632834,1751253054401,-159.319357,0.0002,2]
[368632835,1751253054410,-575.4102369,0.0002,2]
[368632836,1751253054419,-177.5677436,0.0002,2]
[368632837,1751253054428,-575.4102369,0.0002,2]
[368632838,1751253054438,-177.5677436,0.0002,2]
[368632839,1751253054448,-575.4102369,0.0002,2]
[368632840,1751253054458,-159.319357,0.0002,2]
[368632841,1751253054467,-356.8983855,0.0002,2]
[368632842,1751253054476,-575.4102369,0.0002,2]
[368632843,1751253054485,-159.319357,0.0002,2]
[368632844,1751253054494,-575.4102369,0.0002,2]
[368632845,1751253054503,-159.319357,0.0002,2]
[368632846,1751253054513,-575.4102369,0.0002,2]
[368632847,1751253054522,-159.319357,0.0002,2]
[368632848,1751253054531,-159.319357,0.0002,2]
[368632849,1751253054540,-154.6867203,0.0002,2]
[368632850,1751253054549,-177.5677436,0.0002,2]
[368632851,1751253054558,-575.4102369,0.0002,2]
[368632852,1751253054568,-736.6086105,0.0002,2]
[368632853,1751253054577,-159.319357,0.0002,2]
[368632854,1751253054586,-177.5677436,0.0002,2]
[368632855,1751253054595,-575.4102369,0.0002,2]
[368632856,1751253054605,-159.319357,0.0002,2]
[368632857,1751253054614,-177.5677436,0.0002,2]
[368632858,1751253054623,-159.319357,0.0002,2]
[368632859,1751253054632,-575.4102369,0.0002,2]
[368632860,1751253054641,-177.5677436,0.0002,2]
[368632861,1751253054650,-575.4102369,0.0002,2]
[368632862,1751253054659,-159.319357,0.0002,2]
[368632863,1751253054669,-177.5677436,0.0002,2]
[368632864,1751253054678,-575.4102369,0.0002,2]
[368632865,1751253054687,-175.654624,0.0002,2]
[368632866,1751253054696,-1084.8597759,0.0002,2]
[368632867,1751253054706,-159.319357,0.0002,2]
[368632868,1751253054715,-177.5384831,0.0002,2]
[368632869,1751253054724,-575.4102369,0.0002,2]
[368632870,1751253054733,-159.319357,0.0002,2]
[368632871,1751253054742,-575.4102369,0.0002,2]
[368632872,1751253054752,-159.319357,0.0002,2]
[368632873,1751253054761,-153.0,0.0002,2]
[368632874,1751253054770,-153.0,0.0002,2]
[368632875,1751253054779,-573.8689858,0.0002,2]
[368632876,1751253054789,-300.0,0.0002,2]
[368632877,1751253054799,-4000.0,0.0002,4]
[368632878,1751253054808,-502.45500882,0.00020058,2]
[368632879,1751253054817,-1003.69993449,0.00020075,2]
[368632880,1751253054930,-236.0,0.00020098,2]
[368632881,1751253054940,-4942.01093482,0.00020107,2]
[368632882,1751253054951,-400.0,0.0002012,2]
[368632883,1751253054961,-236.0,0.0002015,2]
[368632884,1751253054970,-460.0,0.00020155,2]
[368632885,1751253054979,-1317.79,0.00020155,2]
[368632886,1751253054989,-908.59,0.00020156,2]
[368632887,1751253054998,-1897.47,0.00020156,2]
[368632888,1751253055007,-2100.5,0.00020156,2]
[368632889,1751253055017,-460.0,0.00020156,2]
[368632890,1751253055026,-460.0,0.00020156,2]
[368632891,1751253055036,-307.79349287,0.00020156,2]
[368632892,1751253055046,-460.0,0.00020156,2]
[368632893,1751253055056,-1992.91,0.00020156,2]
[368632894,1751253055065,-1855.7,0.00020156,2]
[368632895,1751253055076,-2731.33,0.00020156,2]
[368632896,1751253055085,-460.0,0.00020156,2]
[368632897,1751253055095,-1236.31,0.00020156,2]
[368632898,1751253055105,-680.87,0.00020156,2]
[368632899,1751253055114,-530.93,0.00020156,2]
[368632900,1751253055125,-460.0,0.00020156,2]
[368632901,1751253055134,-1348.32,0.00020157,2]
[368632902,1751253055144,-460.0,0.00020157,2]
[368632903,1751253055153,-460.0,0.00020157,2]
[368632904,1751253055162,-677.1,0.00020157,2]
[368632905,1751253055172,-460.0,0.00020157,2]
[368632906,1751253055181,-562.76,0.00020157,2]
[368632907,1751253055191,-460.0,0.00020157,2]
[368632908,1751253055200,-730.03,0.00020157,2]
[368632909,1751253055210,-460.0,0.00020157,2]
[368632910,1751253055219,-460.0,0.00020157,2]
[368632911,1751253055228,-617.08,0.00020157,2]
[368632912,1751253055238,-460.0,0.00020157,2]
[368632913,1751253055248,-460.0,0.00020157,2]
[368632914,1751253055258,-460.0,0.00020158,2]
[368632915,1751253055268,-460.0,0.00020158,2]
[368632916,1751253055277,-467.72,0.00020158,2]
[368632917,1751253055286,-460.0,0.00020158,2]
[368632918,1751253055295,-460.0,0.00020158,2]
[368632919,1751253055307,-4152.47,0.00020158,2]
[368632920,1751253055317,-1076.4,0.00020158,2]
[368632921,1751253055326,-616.92,0.00020158,2]
[368632922,1751253055336,-668.05,0.00020158,2]
[368632923,1751253055345,-1701.05,0.00020158,2]
[368632924,1751253055354,-232.54584139,0.00020159,2]
[368632925,1751253055363,-460.0,0.00020159,2]
[368632926,1751253055373,-460.0,0.00020159,2]
[368632927,1751253055382,-637.03,0.00020159,2]
[368632928,1751253055391,-607.46,0.00020159,2]
[368632929,1751253055401,-460.0,0.00020159,2]
[368632930,1751253055410,-1031.72,0.00020159,2]
[368632931,1751253055419,-460.0,0.00020159,2]
[368632932,1751253055428,-747.14,0.00020159,2]
[368632933,1751253055437,-1251.82,0.00020159,2]
[368632934,1751253055447,-460.0,0.00020159,2]
[368632935,1751253055457,-1642.67,0.00020159,2]
[368632936,1751253055467,-525.79,0.00020159,2]
[368632937,1751253055476,-460.0,0.00020159,2]
[368632938,1751253055485,-934.86,0.00020159,2]
[368632939,1751253055495,-1645.98,0.00020159,2]
[368632940,1751253055505,-460.0,0.00020159,2]
[368632941,1751253055514,-5033.76,0.0002016,2]
[368632942,1751253055523,-1330.15,0.0002016,2]
[368632943,1751253055533,-460.0,0.0002017,2]
[368632944,1751253055542,-683.44,0.00020171,2]
[368632945,1751253055551,-557.61673343,0.00020172,2]
[368632946,1751253055560,-1537.20374534,0.00020173,2]
[368632947,1751253055570,-6868.24730573,0.0002018,2]
[368632948,1751253055579,-235.211492,0.00020187,2]
[368632949,1751253055588,-160.0,0.00020189,3]
[368632950,1751253055597,-1493.84431527,0.00020216,2]
[368632951,1751253055606,-2000.0,0.00020216,2]
[368632952,1751253055615,-1309.78369465,0.00020216,2]
[368632953,1751253055625,-236.0,0.0002022,2]
[368632954,1751253055634,-4942.01093482,0.00020279,3]
[368632955,1751253055643,-405.61231988,0.00020281,2]
[368632956,1751253055652,-213.84631524,0.000203,3]
[368632957,1751253055661,-847.41730813,0.000203,3]
[368632958,1751253055670,-160.0,0.000203,3]
[368632959,1751253055679,-12569.13231816,0.000203,3]
[368632960,1751253055689,-524.55407094,0.000203,3]
[368632961,1751253055698,-176.70092935,0.00020414,14]
[368632962,1751253055707,-460.0,0.00020429,2]
[368632963,1751253055716,-1317.79,0.00020429,2]
[368632964,1751253055726,-908.59,0.0002043,2]
[368632965,1751253055735,-1897.47,0.0002043,2]
[368632966,1751253055745,-2100.5,0.0002043,2]
[368632967,1751253055755,-460.0,0.0002043,2]
[368632968,1751253055764,-460.0,0.0002043,2]
[368632969,1751253055773,-460.0,0.0002043,2]
[368632970,1751253055783,-1992.91,0.0002043,2]
[368632971,1751253055793,-1855.7,0.0002043,2]
[368632972,1751253055804,-2731.33,0.0002043,2]
[368632973,1751253055813,-460.0,0.0002043,2]
[368632974,1751253055822,-1236.31,0.0002043,2]
[368632975,1751253055832,-680.87,0.0002043,2]
[368632976,1751253055843,-530.93,0.0002043,2]
[368632977,1751253055853,-460.0,0.0002043,2]
[368632978,1751253055862,-1348.32,0.00020431,2]
[368632979,1751253055871,-563.65740959,0.00020431,2]
[368632980,1751253055881,-460.0,0.00020431,2]
[368632981,1751253055893,-677.1,0.00020431,2]
[368632982,1751253055910,-460.0,0.00020431,2]
[368632983,1751253055926,-562.76,0.00020431,2]
[368632984,1751253055938,-460.0,0.00020431,2]
[368632985,1751253055953,-730.03,0.00020431,2]
[368632986,1751253055969,-460.0,0.00020431,2]
[368632987,1751253055984,-460.0,0.00020431,2]
[368632988,1751253055999,-617.08,0.00020431,2]
[368632989,1751253056016,-460.0,0.00020431,2]
[368632990,1751253056029,-460.0,0.00020431,2]
[368632991,1751253056043,-460.0,0.00020432,2]
[368632992,1751253056057,-460.0,0.00020432,2]
[368632993,1751253056072,-467.72,0.00020432,2]
[368632994,1751253056085,-460.0,0.00020432,2]
[368632995,1751253056096,-460.0,0.00020432,2]
[368632996,1751253056110,-4152.47,0.00020432,2]
[368632997,1751253056124,-1076.4,0.00020432,2]
[368632998,1751253056138,-616.92,0.00020432,2]
[368632999,1751253056155,-668.05,0.00020432,2]
[368633000,1751253056171,-1701.05,0.00020432,2]
[368633001,1751253056186,-460.0,0.00020433,2]
[368633002,1751253056197,-460.0,0.00020433,2]
[368633003,1751253056208,-637.03,0.00020433,2]
[368633004,1751253056225,-607.46,0.00020433,2]
[368633005,1751253056238,-460.0,0.00020433,2]
[368633006,1751253056250,-1031.72,0.00020433,2]
[368633007,1751253056262,-460.0,0.00020433,2]
[368633008,1751253056277,-747.14,0.00020433,2]
[368633009,1751253056288,-1251.82,0.00020433,2]
[368633010,1751253056299,-271.88558948,0.00020433,2]
[368633011,1751253056312,-1642.67,0.00020433,2]
[368633012,1751253056324,-525.79,0.00020433,2]
[368633013,1751253056336,-460.0,0.00020433,2]
[368633014,1751253056349,-934.86,0.00020433,2]
[368633015,1751253056361,-1645.98,0.00020433,2]
[368633016,1751253056374,-460.0,0.00020433,2]
[368633017,1751253056386,-5033.76,0.00020434,2]
[368633018,1751253056399,-1330.15,0.00020434,2]
[368633019,1751253056413,-236.0,0.00020443,2]
[368633020,1751253056426,-460.0,0.00020444,2]
[368633021,1751253056438,-683.44,0.00020445,2]
[368633022,1751253056450,-4942.01093482,0.00020452,3]
[368633023,1751253056462,-236.0,0.00020547,2]
[368633024,1751253056475,-151.0,0.00020548,2]
[368633025,1751253056487,-151.0,0.00020548,2]
[368633026,1751253056500,-244.81484,0.00020548,2]
[368633027,1751253056513,-177.166657,0.0002055,4]
[368633028,1751253056525,-4656.76,0.000206,2]
[368633029,1751253056537,-4942.01093482,0.00020624,3]
[368633030,1751253056550,-151.0,0.00020656,4]
[368633031,1751253056562,-460.0,0.00020703,2]
[368633032,1751253056575,-1317.79,0.00020703,2]
[368633033,1751253056587,-908.59,0.00020704,2]
[368633034,1751253056599,-1897.47,0.00020704,2]
[368633035,1751253056611,-2100.5,0.00020704,2]
[368633036,1751253056620,-460.0,0.00020704,2]
[368633037,1751253056629,-460.0,0.00020704,2]
[368633038,1751253056638,-1992.91,0.00020704,2]
[368633039,1751253056648,-1855.7,0.00020704,2]
[368633040,1751253056657,-2731.33,0.00020704,2]
[368633041,1751253056666,-460.0,0.00020704,2]
[368633042,1751253056678,-1236.31,0.00020704,2]
[368633043,1751253056688,-680.87,0.00020704,2]
[368633044,1751253056697,-530.93,0.00020704,2]
[368633045,1751253056707,-460.0,0.00020704,2]
[368633046,1751253056716,-1348.32,0.00020705,2]
[368633047,1751253056726,-460.0,0.00020705,2]
[368633048,1751253056735,-677.1,0.00020705,2]
[368633049,1751253056744,-460.0,0.00020705,2]
[368633050,1751253056753,-562.76,0.00020705,2]
[368633051,1751253056763,-460.0,0.00020705,2]
[368633052,1751253056771,-730.03,0.00020705,2]
[368633053,1751253056781,-460.0,0.00020705,2]
[368633054,1751253056791,-454.68,0.00020705,2]
[368633055,1751253056800,-617.08,0.00020705,2]
[368633056,1751253056810,-460.0,0.00020705,2]
[368633057,1751253056819,-460.0,0.00020705,2]
[368633058,1751253056829,-174.52002608,0.00020706,2]
[368633059,1751253056841,-460.0,0.00020706,2]
[368633060,1751253056851,-467.72,0.00020706,2]
[368633061,1751253056870,-460.0,0.00020706,2]
[368633062,1751253056882,-4152.47,0.00020706,2]
[368633063,1751253056892,-1076.4,0.00020706,2]
[368633064,1751253056902,-616.92,0.00020706,2]
[368633065,1751253056911,-668.05,0.00020706,2]
[368633066,1751253056921,-1701.05,0.00020706,2]
[368633067,1751253056932,-460.0,0.00020707,2]
[368633068,1751253056942,-637.03,0.00020707,2]
[368633069,1751253056952,-607.46,0.00020707,2]
[368633070,1751253056962,-460.0,0.00020707,2]
[368633071,1751253056971,-1031.72,0.00020707,2]
[368633072,1751253056982,-460.0,0.00020707,2]
[368633073,1751253056992,-747.14,0.00020707,2]
[368633074,1751253057002,-1251.82,0.00020707,2]
[368633075,1751253057012,-1642.67,0.00020707,2]
[368633076,1751253057022,-525.79,0.00020707,2]
[368633077,1751253057032,-460.0,0.00020707,2]
[368633078,1751253057042,-934.86,0.00020707,2]
[368633079,1751253057052,-1645.98,0.00020707,2]
[368633080,1751253057063,-460.0,0.00020707,2]
[368633081,1751253057339,-5033.76,0.00020708,2]
[368633082,1751253057355,-1330.15,0.00020708,2]
[368633083,1751253057367,-460.0,0.00020718,2]
[368633084,1751253057376,-683.44,0.00020719,2]
[368633085,1751253057386,-6868.24730571,0.0002073,2]
[368633086,1751253057395,-2500.0,0.00020764,2]
[368633087,1751253057404,-160.0,0.0002077,3]
[368633088,1751253057414,-4942.01093482,0.00020797,4]
[368633089,1751253057423,-1000.0,0.000208,8]
[368633090,1751253057433,-879.669628,0.00020819,2]
[368633091,1751253057442,-879.669628,0.00020819,2]
[368633092,1751253057452,-11625.06300801,0.00020833,2]
[368633093,1751253057461,-151.0,0.00020848,4]
[368633094,1751253057471,-223.0315306,0.00020968,2]
[368633095,1751253057481,-4942.01093482,0.00020969,4]
[368633096,1751253057490,-460.0,0.00020977,2]
[368633097,1751253057499,-1317.79,0.00020977,2]
[368633098,1751253057508,-908.59,0.00020978,2]
[368633099,1751253057518,-1897.47,0.00020978,2]
[368633100,1751253057527,-2100.5,0.00020978,2]
[368633101,1751253057536,-460.0,0.00020978,2]
[368633102,1751253057546,-460.0,0.00020978,2]
[368633103,1751253057555,-1992.91,0.00020978,2]
[368633104,1751253057564,-1855.7,0.00020978,2]
[368633105,1751253057573,-2731.33,0.00020978,2]
[368633106,1751253057582,-460.0,0.00020978,2]
[368633107,1751253057591,-1236.31,0.00020978,2]
[368633108,1751253057600,-680.87,0.00020978,2]
[368633109,1751253057609,-530.93,0.00020978,2]
[368633110,1751253057619,-460.0,0.00020978,2]
[368633111,1751253057628,-1348.32,0.00020979,2]
[368633112,1751253057637,-460.0,0.00020979,2]
[368633113,1751253057647,-677.1,0.00020979,2]
[368633114,1751253057662,-460.0,0.00020979,2]
[368633115,1751253057672,-562.76,0.00020979,2]
[368633116,1751253057682,-460.0,0.00020979,2]
[368633117,1751253057691,-730.03,0.00020979,2]
[368633118,1751253057703,-460.0,0.00020979,2]
[368633119,1751253057717,-617.08,0.00020979,2]
[368633120,1751253057726,-460.0,0.00020979,2]
[368633121,1751253057736,-460.0,0.00020979,2]
[368633122,1751253057745,-460.0,0.0002098,2]
[368633123,1751253057755,-467.72,0.0002098,2]
[368633124,1751253057764,-460.0,0.0002098,2]
[368633125,1751253057773,-4152.47,0.0002098,2]
[368633126,1751253057783,-1076.4,0.0002098,2]
[368633127,1751253057792,-616.92,0.0002098,2]
[368633128,1751253057801,-668.05,0.0002098,2]
[368633129,1751253057810,-1701.05,0.0002098,2]
[368633130,1751253057820,-460.0,0.00020981,2]
[368633131,1751253057830,-637.03,0.00020981,2]
[368633132,1751253057841,-607.46,0.00020981,2]
[368633133,1751253057851,-460.0,0.00020981,2]
[368633134,1751253057860,-1031.72,0.00020981,2]
[368633135,1751253057869,-460.0,0.00020981,2]
[368633136,1751253057878,-747.14,0.00020981,2]
[368633137,1751253057888,-1251.82,0.00020981,2]
[368633138,1751253057898,-1642.67,0.00020981,2]
[368633139,1751253057907,-525.79,0.00020981,2]
[368633140,1751253057919,-460.0,0.00020981,2]
[368633141,1751253057929,-934.86,0.00020981,2]
[368633142,1751253057938,-1645.98,0.00020981,2]